Cogmind - Beta 15 @@@ ROGUE MODE // 2025.07.28 @ 03:23:44 // AFD2020/Player2 Player: bugsniper Result: Destroyed by VK-22O(j) with Overtuned Pulse Rifle Performance ------------- Evolutions (0) 0 Regions Visited (4) 800 Robots Destroyed (33) 165 Value Destroyed (971) 971 Prototype IDs (1) 20 Alien Tech Used (0) 0 Bonus (1199) 1199 TOTAL SCORE: 3155 Bonus ------- Follower Combat Kills 689 Registered with UFD 300 Met Optimus in HQ 500 Friendly Fire -290 Cogmind --------- Core Integrity 0/250 Matter 298/300 Energy 104/125 System Corruption 0% Temperature Cool (64) Movement Treading (150) Location -7/Scraptown Parts ------- > --- POWER (1) -------- Light Ion Engine > --- PROPULSION (2) --- Spiked Treads Overtuned Treads > --- UTILITY (2) ------ Large Storage Unit Core Shielding > --- WEAPON (2) ------- Overtuned Pulse Rifle Bolt Gun > --- INVENTORY (15) --- Light Nuclear Core Aluminum Leg Makeshift Targeting Computer Advanced Targeting Computer Improved Medium Armor Plating Gauss Rifle Grenade Launcher Grenade Launcher Heavy Mace Peak State ------------ > --- POWER ------------ Light Ion Engine > --- PROPULSION ------- Spiked Treads Overtuned Treads > --- UTILITY ---------- Large Storage Unit Core Shielding > --- WEAPON ----------- Overtuned Pulse Rifle Bolt Gun > --- INVENTORY -------- Light Nuclear Core Aluminum Leg Makeshift Targeting Computer Advanced Targeting Computer Improved Medium Armor Plating Gauss Rifle Grenade Launcher Grenade Launcher Heavy Mace Botcube [Rating: 15] Favorites ----------- Power Light Ion Engine Engine Light Ion Engine Propulsion Light Treads Treads Light Treads Leg Aluminum Leg Utility Core Shielding Device Structural Scanner Storage Small Storage Unit Protection Core Shielding Weapon Grenade Launcher Energy Gun Medium Laser Ballistic Gun Minigun Ballistic Cannon Battle Cannon Launcher Grenade Launcher Build | -11 -10 -10 -7 -7 ------- Run | Yrd Mat Sub Rec Scr Slots Evolved . | . . . . . Power . | . . . . . Propulsion . | . . . . . Utility . | . . . . . Weapon . | . . . . . Parts Attached 25 | . 4 10 2 9 Power 2 | . . 1 1 . Engine 2 | . . 1 1 . Core . | . . . . . Reactor . | . . . . . Propulsion 5 | . . 3 . 2 Treads 5 | . . 3 . 2 Leg . | . . . . . Wheel . | . . . . . Hover . | . . . . . Flight . | . . . . . Utility 5 | . 2 . . 3 Device 1 | . 1 . . . Storage 2 | . . . . 2 Processor . | . . . . . Hackware . | . . . . . Protection 2 | . 1 . . 1 Artifact . | . . . . . Weapon 13 | . 2 6 1 4 Energy Gun 3 | . 1 . . 2 Energy Cannon . | . . . . . Ballistic Gun 3 | . 1 . . 2 Ballistic Cannon 2 | . . 1 1 . Launcher 5 | . . 5 . . Special Weapon . | . . . . . Impact Weapon . | . . . . . Slashing Weapon . | . . . . . Piercing Weapon . | . . . . . Special Melee Weapon . | . . . . . Unidentified Prototypes . | . . . . . Parts Lost 2 | . . 1 . 1 Power . | . . . . . Propulsion . | . . . . . Utility . | . . . . . Weapon 2 | . . 1 . 1 Highest Loss Streak 1 | . . 1 . 1 To Critical Strikes . | . . . . . Average Backups 7 | . 7 7 8 7 Power . | . 1 . . . Propulsion 1 | . 2 2 2 1 Utility 1 | . . 1 1 2 Weapon 4 | . 3 4 4 3 Tool/Special . | . . . . . Unused Backups 18 | . 8 5 1 4 Power 4 | . 1 2 . 1 Propulsion 4 | . 4 . . . Utility 3 | . 1 . . 2 Weapon 7 | . 2 3 1 1 Tool/Special . | . . . . . Average Slot Usage (%) 99 | . 97 99 100 99 Engine 14 | . 14 14 14 14 Treads 26 | . . 27 28 28 Leg 1 | . 28 . . . Storage 13 | . 14 14 14 13 Protection 13 | . 8 14 14 13 Energy Gun 1 | . 9 . . . Ballistic Gun 6 | . 18 . 1 12 Ballistic Cannon 9 | . . . 25 14 Launcher 10 | . . 27 1 . Peak Build Rating 15 | . 7 11 12 15 Average Rating 10 | . 6 9 11 12 On Entrance 8 | 6 6 7 11 12 Naked Turns . | . . . . . Heaviest Build 209 | 10 13 22 22 209 Greatest Support 40 | 20 20 40 40 40 Greatest Overweight (x) 5 | . . . . 5 Average Overweight (x) . | . . . . . Largest Inventory Capacity 35 | . 8 8 8 35 Average Capacity 8 | . 8 8 8 9 Most Carried 10 | . 8 8 8 10 Average Carried 7 | . 7 7 7 7 Final Capacity 15 | 8 8 8 8 15 Final Carried 9 | 6 8 8 8 9 Class Distribution -------------------- 49% | Mutant 48% | Commander-Mutant Dominant Class ---------------- Mutant | -10/Materials Mutant | -10/Subcaves Commander-Mutant | -7/Recycling Commander-Mutant | -7/Scraptown Resources | -11 -10 -10 -7 -7 ----------- Run | Yrd Mat Sub Rec Scr Matter Collected 1284 | 200 55 495 320 214 Remotely . | . . . . . Salvage Created 1142 | . 303 535 155 149 Parts 64 | . 13 39 5 7 Haulers Intercepted 1 | . 1 . . . Recyclers Shooed 4 | . 1 . 3 . Parts Field Recycled . | . . . . . Retrieved Matter . | . . . . . Parts Self-Destructed 6 | . . 6 . . Prevented . | . . . . . Kills | -11 -10 -10 -7 -7 ------- Run | Yrd Mat Sub Rec Scr Combat Hostiles Destroyed 25 | . 2 20 . 3 Guns 4 | . 2 . . 2 Cannons 1 | . . . . 1 AOE 20 | . . 20 . . Classes Destroyed 10 | . 3 4 . 3 Hauler 1 | . 1 . . . Recycler 5 | . 2 . 3 . Turret 2 | . . 2 . . Swarmer 5 | . . 5 . . Grunt 2 | . 2 . . . Sentry 1 | . . 1 . . Subdweller 14 | . . 14 . . Ranger 1 | . . . . 1 Savage 1 | . . . . 1 Butcher 1 | . . . . 1 Best Kill Streak 6 | . 2 6 2 1 Combat Bots Only 4 | . 2 4 . 1 Max Kills in Single Turn 2 | . 1 2 1 1 Gunslinging . | . . . . . Exploded 2 | . . 2 . . Melee . | . . . . . Uniques/NPCs Destroyed . | . . . . . Combat | -11 -10 -10 -7 -7 -------- Run | Yrd Mat Sub Rec Scr Hostile Shots Fired 74 | . 5 14 36 19 Missed 30 | . 3 6 14 7 Hits 44 | . 2 8 22 12 Projectile 44 | . 2 8 22 12 AOE 2 | . . 1 . 1 Damage Taken 843 | . 20 342 192 289 Core 99 | . . 15 14 70 Absorbed by Shields . | . . . . . Redirected to Shielding 15 | . . 1 3 11 Core Remaining (%) 100 | 100 . . . . Volleys Fired 85 | . 18 25 16 26 Largest 2 | . 2 2 2 2 Hottest 113 | . 70 70 70 113 Shots Fired 155 | . 36 41 32 46 Gun 76 | . 36 . 5 35 Cannon 38 | . . . 27 11 Launcher 41 | . . 41 . . Special . | . . . . . Kinetic 98 | . 25 10 32 31 Thermal 26 | . 11 . . 15 Explosive 31 | . . 31 . . Electromagnetic . | . . . . . Robot Hit Streak 22 | . 9 22 6 5 Robot Miss Streak 4 | . 1 2 3 4 Penetration Max 1 | . . . . 1 Secondary Targets . | . . . . . Shots Hit Robots 96 | . 27 19 24 26 Core Hits 70 | . 11 35 13 11 Critical Kills . | . . . . . Critical Parts Destroyed . | . . . . . Critical Strikes . | . . . . . Melee Attacks . | . . . . . Impact . | . . . . . Slashing . | . . . . . Piercing . | . . . . . Sneak Attacks . | . . . . . Combat Hostiles . | . . . . . Follow-up Attacks . | . . . . . Damage Inflicted 3527 | . 258 2241 514 514 Guns 693 | . 258 . 22 413 Cannons 593 | . . . 492 101 Explosions 2241 | . . 2241 . . Melee . | . . . . . Ramming . | . . . . . Kinetic 1669 | . 168 758 514 229 Thermal 375 | . 90 . . 285 Explosive 1483 | . . 1483 . . Electromagnetic . | . . . . . Impact . | . . . . . Slashing . | . . . . . Piercing . | . . . . . Highest Corruption . | . . . . . Average Corruption . | . . . . . Corruption Purged . | . . . . . Corruption Blocked . | . . . . . Overload Shots . | . . . . . Overflow Damage 92 | . . 74 18 . Projectiles 18 | . . . 18 . Explosions 74 | . . 74 . . Melee . | . . . . . Knockbacks 2 | . . . 2 . Impact . | . . . . . Kinetic 2 | . . . 2 . Secondary . | . . . . . Self-Inflicted Damage 148 | . . 148 . . Shots 7 | . . 7 . . Rammed . | . . . . . Targets Rammed . | . . . . . Kicked . | . . . . . Crushed . | . . . . . Highest Temperature 220 | . 112 . 66 220 Average Temperature 53 | . 43 . 21 71 Received Heat Transfer 267 | . 12 42 63 150 Siege Activations . | . . . . . Martial Activations . | . . . . . Shielding Activations . | . . . . . Robots Disrupted . | . . . . . Combat Hostiles . | . . . . . Robots Corrupted . | . . . . . Combat Hostiles . | . . . . . Parts Fried . | . . . . . Impact Corruptions . | . . . . . Robots Melted . | . . . . . Combat Hostiles . | . . . . . Parts Melted 1 | . 1 . . . Heat Transferred 844 | . 259 . . 585 Parts Sabotaged . | . . . . . Parts Stolen . | . . . . . Parts Stripped . | . . . . . Power Chain Reactions . | . . . . . Alert | -11 -10 -10 -7 -7 ------- Run | Yrd Mat Sub Rec Scr Maximum Alert Level . | . . . . . Low Security (%) 100 | . 100 . 100 . Level 1 . | . . . . . Level 2 . | . . . . . Level 3 . | . . . . . Level 4 . | . . . . . Level 5 . | . . . . . High Security . | . . . . . Max Security . | . . . . . Peak Influence 70 | . 62 . 70 . Initial 70 | . . . 70 . Average 12 | . 9 . 12 . Influence Increases 439 | . 82 200 157 . Destroy 0b10 Robot/C 240 | . 40 160 40 . Destroy 0b10 Robot/NC 50 | . 15 . 35 . Destroy Leader 12 | . 12 . . . Allied During Kill 98 | . 15 40 43 . Successful Hack 35 | . . . 35 . Destroy Structure 4 | . . . 4 . Influence Decreases 439 | . 82 52 305 . Entered New Map 78 | . . . 78 . Time Decay 344 | . 82 52 210 . Lost Ally 17 | . . . 17 . Squads Dispatched . | . . . . . Investigation . | . . . . . Extermination . | . . . . . Reinforcement . | . . . . . Assault . | . . . . . Garrison . | . . . . . Intercept . | . . . . . Searches Triggered . | . . . . . Construction Impeded . | . . . . . Haulers Reinforced . | . . . . . Active Scanning Responses . | . . . . . Cargo Convoy Interrupts . | . . . . . Stealth | -11 -10 -10 -7 -7 --------- Run | Yrd Mat Sub Rec Scr Distress Signals 1 | . . . 1 . Communications Jammed . | . . . . . Distress Signals . | . . . . . Times Spotted 55 | . 2 20 4 29 Peak Tracking Total 6 | . 2 6 2 5 Tactical Retreats . | . . . . . Traps | -11 -10 -10 -7 -7 ------- Run | Yrd Mat Sub Rec Scr Traps Triggered . | . . . . . Indirectly . | . . . . . Trap Hack Attempts . | . . . . . Triggered . | . . . . . Disarmed . | . . . . . Reprogrammed . | . . . . . Reused . | . . . . . Traps Extracted . | . . . . . Installed . | . . . . . Triggered . | . . . . . Machines | -11 -10 -10 -7 -7 ---------- Run | Yrd Mat Sub Rec Scr Machines Disabled 6 | . . 4 . 2 Max in Single Turn 3 | . . 3 . . Machines Repaired . | . . . . . Machines Dismantled . | . . . . . Machines Sabotaged . | . . . . . Overloaded Fab Kills . | . . . . . Hacking | -11 -10 -10 -7 -7 --------- Run | Yrd Mat Sub Rec Scr Machines Accessed 19 | . 1 3 8 7 Terminals 4 | . 1 . 3 . Fabricators . | . . . . . Repair Stations . | . . . . . Recycling Units 3 | . . . 3 . Scanalyzers . | . . . . . Garrison Access . | . . . . . Total Hacks 102 | . 4 6 39 53 Successful 91 | . 1 6 31 53 Failed 11 | . 3 . 8 . Catastrophic . | . . . . . Database Lockouts . | . . . . . Manual 13 | . 2 . 11 . Terminals 13 | . 4 . 9 . Fabricators . | . . . . . Repair Stations . | . . . . . Recycling Units 6 | . . . 6 . Scanalyzers . | . . . . . Garrison Access . | . . . . . Terminal Hacks 85 | . . 6 26 53 Record 81 | . . 4 24 53 Open Door 1 | . . 1 . . Alert Level 1 | . . . 1 . Zone Layout 1 | . . . 1 . Release Object 1 | . . 1 . . Fabricator Hacks . | . . . . . Repair Station Hacks . | . . . . . Recycling Unit Hacks . | . . . . . Scanalyzer . | . . . . . Garrison Access Hacks . | . . . . . Unauthorized Hacks 6 | . 1 . 5 . Terminals 4 | . 1 . 3 . Track 1 | . . . 1 . Botnet 2 | . 1 . 1 . Operators 1 | . . . 1 . Fabricators . | . . . . . Repair Stations . | . . . . . Recycling Units 2 | . . . 2 . Reject 2 | . . . 2 . Scanalyzers . | . . . . . Garrison Access . | . . . . . Data Cores Recovered . | . . . . . Used . | . . . . . Hacking Detections 7 | . 1 . 6 . Full Trace Events 1 | . . . 1 . Feedback Events . | . . . . . Feedback Blocked . | . . . . . Robot Schematics Acquired . | . . . . . Robots Built . | . . . . . Authchips . | . . . . . Time . | . . . . . Total Robot Build Rating . | . . . . . Part Schematics Acquired . | . . . . . Parts Built . | . . . . . Authchips . | . . . . . Time . | . . . . . Total Part Build Rating . | . . . . . Parts Repaired . | . . . . . Time . | . . . . . Parts Recycled . | . . . . . Recycled Matter . | . . . . . Retrieved Matter . | . . . . . Retrieved Components . | . . . . . Parts Scanalyzed . | . . . . . Part Schematics Acquired . | . . . . . Parts Damaged . | . . . . . Bothacking | -11 -10 -10 -7 -7 ------------ Run | Yrd Mat Sub Rec Scr Used RIF Installer . | . . . . . Robots Hacked . | . . . . . Non-combat . | . . . . . Combat . | . . . . . Robot Hacks Applied . | . . . . . Relay Couplers Released . | . . . . . Fabnet Peak Effective % . | . . . . . Robots Rewired 11 | . . . 11 . Allies Hacked . | . . . . . Hacks Repelled . | . . . . . Allies | -11 -10 -10 -7 -7 -------- Run | Yrd Mat Sub Rec Scr Total Allies 13 | . 1 . 11 1 Largest Group 12 | . 1 1 12 9 Highest-Rated Group 327 | . 59 62 327 276 Highest-Rated Ally 82 | . 59 62 67 82 Total Orders . | . . . . . Ally Attacks 103 | . . 18 29 56 Total Damage 2890 | . . 426 879 1585 Kills 29 | . . 4 6 19 Allies Corrupted . | . . . . . Allies Melted 8 | . . . . 8 Intel | -11 -10 -10 -7 -7 ------- Run | Yrd Mat Sub Rec Scr Active Infowar (turns) 123 | . 123 . . . Structural 123 | . 123 . . . Robot Analysis Total . | . . . . . Derelict Logs Recovered 2 | . . 2 . . Drone Launches . | . . . . . Drone Recoveries . | . . . . . Exploration | -11 -10 -10 -7 -7 ------------- Run | Yrd Mat Sub Rec Scr Turns Passed 7581 | . 467 2929 1095 3090 Spaces Moved 4455 | 1 262 1768 570 1854 Core . | . . . . . Treads 4192 | . . 1768 570 1854 Legs 263 | 1 262 . . . Wheels . | . . . . . Hover . | . . . . . Flight . | . . . . . Fastest Speed 120 | 120 120 160 160 150 Average Speed 158 | 120 120 160 160 161 Slowest Speed 610 | 120 120 160 160 610 Overloaded Moves . | . . . . . Propulsion Burnouts . | . . . . . Robots Hopped . | . . . . . Potential Cave-ins 3 | . . 3 . . Cave-ins Triggered . | . . . . . Exploration Rate (%) 58 | 2 34 84 81 93 Regions Visited 4 Branch Regions 3 Pre-discovered Areas 1 | . . 1 . . Known Exits Taken . | . . . . . Unknown Exits Taken 4 | 1 1 1 1 . Scrap Searched 8 | . . 5 . 3 Spaces Dug 17 | . . 17 . . Terrain Destroyed 291 | . . 288 2 1 Melee . | . . . . . Projectile 3 | . . . 2 1 AOE 288 | . . 288 . . Terrain Rammed . | . . . . . Walls Destroyed . | . . . . . Machines Disabled . | . . . . . Actions | -11 -10 -10 -7 -7 --------- Run | Yrd Mat Sub Rec Scr Total 4853 | . 384 1829 722 1918 Wait 156 | . 92 9 46 9 Move 4451 | . 261 1767 569 1854 Hop . | . . . . . Pick Up 22 | . 5 9 3 5 Fast Attach 15 | . 1 . 3 11 Attach 3 | . . 3 . . Detach . | . . . . . Swap 13 | . 3 7 2 1 Drop 31 | . 4 9 6 12 Fire 85 | . 18 25 16 26 Melee . | . . . . . Ram . | . . . . . Kick . | . . . . . Crush . | . . . . . Escape Stasis . | . . . . . Rewire 77 | . . . 77 . Trap . | . . . . . Miscellaneous . | . . . . . Route ------- -11/Scrapyard -10/Materials (discovered 2 exits: [*Min] / *Sub) -10/Subcaves (discovered 3 exits: [*Mat x2] / *Rec) -7/Recycling -7/Scraptown (discovered 2 exits: [*Fac x2]) History --------- Turn | Location | Event 1 | -11/Scrapyard | Discovered new exit (range 0) 1 | -11/Scrapyard | Entered Materials 34 | -10/Materials | Discovered new exit (range 15) 302 | -10/Materials | Build established: Mutant 452 | -10/Materials | Discovered new exit (range 5) 468 | -10/Materials | Entered Subcaves 487 | -10/Subcaves | Learned Materials garrison access intel 997 | -10/Subcaves | Shifting Twisted Machinery released Flamer 1006 | -10/Subcaves | Shifting Twisted Machinery released Shrapnel Trap 1231 | -10/Subcaves | Visited Clippyterm 1235 | -10/Subcaves | Learned location of Section 7 (-3) 1371 | -10/Subcaves | Ambushed by Subdwellers from Twisted Machinery 1381 | -10/Subcaves | Ambushed by Subdweller buried in earth 1384 | -10/Subcaves | Ambushed by Subdweller buried in earth 1503 | -10/Subcaves | Shifting Twisted Machinery released Sub. Power Source 1913 | -10/Subcaves | Disturbed a concealed Subdweller 1969 | -10/Subcaves | Ambushed by Subdweller buried in earth 1971 | -10/Subcaves | Core integrity fell below 50% 2044 | -10/Subcaves | Discovered new exit (range 14) 2165 | -10/Subcaves | Discovered new exit (range 5) 2203 | -10/Subcaves | Learned location of 2 exits from Materials 3357 | -10/Subcaves | Shifting Twisted Machinery released Scrap Shield 3370 | -10/Subcaves | Discovered new exit (range 15) 3397 | -10/Subcaves | Entered Recycling 3995 | -7/Recycling | Build established: Commander-Mutant 4370 | -7/Recycling | Scanned before Scraplab entrance 4404 | -7/Recycling | Entered Scraplab 4426 | -7/Recycling | Discovered new exit (range 3) 4492 | -7/Recycling | Entered Scraptown 4492 | -7/Scraptown | Accompanied by 8 allies 4989 | -7/Scraptown | Discovered new exit (range 7) 5165 | -7/Scraptown | Visited Red Mages 5258 | -7/Scraptown | Visited Cyclists 5314 | -7/Scraptown | Visited Assassins FH 5380 | -7/Scraptown | Visited Junk Repository 5461 | -7/Scraptown | Visited UFD Registry 5487 | -7/Scraptown | Visited CPS Storage 5821 | -7/Scraptown | Visited IN-MT5's Study 5959 | -7/Scraptown | Visited Fellowship of the Rings 6285 | -7/Scraptown | Registered with UFD as "Microhead" 6338 | -7/Scraptown | Visited Modified Component R&D 6469 | -7/Scraptown | Visited Abandonware Association 6488 | -7/Scraptown | Learned abandonware demo "MELTYB.EXE" 6488 | -7/Scraptown | Learned abandonware demo "REBOOT5.EXE" 6527 | -7/Scraptown | Visited DA-N13 Charitable Foundation 6544 | -7/Scraptown | Found DCF Scrap (30 items) 6719 | -7/Scraptown | Discovered new exit (range 5) 6789 | -7/Scraptown | Visited Curators Association 6832 | -7/Scraptown | Visited Junk Repository 6887 | -7/Scraptown | Visited Research Penetration Think Tank 6954 | -7/Scraptown | Met Optimus 6954 | -7/Scraptown | Accepted into 0bPrime 7045 | -7/Scraptown | Visited Chapter 10 7161 | -7/Scraptown | Civil war broke out across Scraptown 7212 | -7/Scraptown | Lost 3 allies 7361 | -7/Scraptown | Core integrity fell below 20% 7443 | -7/Scraptown | Visited Botcube Research 7452 | -7/Scraptown | Found Botcube 7559 | -7/Scraptown | Botcube activated 7573 | -7/Scraptown | Botcube completed mutation into legged form (unarmed). 7575 | -7/Scraptown | Lost 4 allies 7582 | -7/Scraptown | Destroyed by VK-22O(j) with Overtuned Pulse Rifle Last Messages --------------- 07572_ BW-1ZN(E) cannibalizes Imp. Heat Sink to repair Mak. Microdissipator Network. 07573_ Botcube completes transformation. 07576_ Mutated Botcube secures Ovr. Pulse Rifle. 07579_ Mutated Botcube cannibalizes Lgt. Deuterium Engine to repair Lgt. Deuterium Engine. 07579_ Bolt penetrates Machine. 07580_ Mutated Botcube secures Mak. Spear. 07580_ BW-1ZN(E) suffers critical hit (Burn). 07580_ Slug penetrates BW-1ZN(E). 07580_ BW-1ZN(E) destroyed. 07580_ Slug penetrates Machine. 07580_ 4G-EVT(g) destroyed. Player 2: "A decisive victory in my favor, I'd say." 07581_ Mutated Botcube cannibalizes Salvaging Laser to repair Ovr. Pulse Rifle. 07581_ VK-22O(j) cannibalizes Aluminum Leg to repair Ovr. Titanium Leg. Map ----- +----------------------------------------------------+ | ##???????????????????????"""?#"""##""|##"""#??## | | ?????????????????????????"" ##""!##""|##!!"#### | | ????????????????????????#"" | | ????????????????????????# | | ????????????????????????####################### | | ?????????##############???????????????????????## | | ?????????#""""""""""""#????????????????????????# | | ?????????#" " #"""""""#????????????????????????# | | ?????????# ] # = "="#?###########????????????# | | ####?????####+# "#?#"""""""""#????????????# | | #?????#""" "#?# " " " #????????????# | | #?????#"= ="#?# #??########### | | #?????#"" """""#?# "# #" #??#*=*## ## | | #?????#" "#####?# "#X#" #??#==[##[ %## | | #?????#X """""#?# "###" #??#*%]/=[% ## | | #?????## [ #?# """"" #??#]![![!*]## | | #?????#" [ #?# * #??#*!!!/* ## | | #?????#" !!! #?# *! #??#!*==== ## | | #?????#########*###########%;###??#####*##### | | # ####???????#####%##;##;#####=%########## ##### | | #???????#""*%%"" =="*[% !" """=""" """"" | | #???????#" !!*%! /==[*=!=!!% [%=!%! | | #???????#" ! =[!*%[%!!%[!!!!=j [ | | #???????#" !![*!//=%[=*=%! j= | | #???????#" !% [%!@!==[[=%!!=* %! | | #???#####" = M!=%[@*%=!![ [ | | #???#"""" = !%%%r%"""""""" """"""""""""""" | | #???#"""" !!%! =/!""""""""""""""""""""""""" | | #???#""""[% *% !=###### ################"" | | #???#"""" *======# ##????????#"" | | #???#""""![%!![%"# X"#????????#"" | | ###?#""""=[!!%!="# "" ""% ##????????#""[% | | ""#"#"""=[!*%==""# "" "" X"#??????###""!= | | """"#""""[ %%%=="# " ######### #"!== | | ""####### %=!!!"" "" *%!% | | ###?????#"![ ["" "" ! =!!! | | [ #########=!%=%%""# " " ######### #""!! | | %* &=%!! =!!= *""# "" "" ""#??????###""%! | | /%=!%[ / ! ""# "" " ##????????#""*! | | =!=*=*= % "# X"#????????#""=% | | !%=%%!= * ""# %! ##????###?#"" | | [==!% ""###### ############"###"" | | [*=%% """""""" """""""""""""" """ | | = ! [=! """"""""""" """""" ["" " "" | | =%!% =%! = % [=%=!%! [%! !%[[= | | =%* * *! [%= !=[[=%! !!%! = !==%% | | ! =!!!!!=%==![ [ !=!*=[= | | #""""# !%[*=* * !% =!![% %=*!! | | !% % #????# !=*%!= [%! * %!%=! | | ! #????#" """!"["" """""!"""""" !%%[!! | +----------------------------------------------------+ Best States ------------- Heat Dissipation 25 Energy Generation 15 Energy Capacity 200 Matter Stores 300 Matter Capacity 300 Sight Range 16 Terrain Scan Density 10 Armor Coverage 225 Core Shielding 20 Evasion (%) 55 Recoil Reduction 2 Item Schematics ----------------- None Robot Schematics ------------------ None Fabricated ------------ Nothing Repaired ---------- Nothing Alien Tech Used ----------------- None Achievements -------------- None Challenges ------------ None Player 2 | -11 -10 -10 -7 -7 ---------- Run | Yrd Mat Sub Rec Scr Slots Evolved . | . . . . . Power . | . . . . . Propulsion . | . . . . . Utility . | . . . . . Weapon . | . . . . . Parts Attached 28 | . 7 6 3 12 Parts Lost 2 | . . 1 . 1 Damage Taken 724 | . 11 458 5 250 Core 151 | . 11 117 . 23 Player 2/Cogmind (%) 60 | . 100 88 . 24 Absorbed by Shields . | . . . . . Damage Inflicted 1264 | . . 426 239 599 Player 2/Cogmind (%) 26 | . . 15 31 53 Combat Hostiles Destroyed 9 | . . 4 . 5 Player 2/Cogmind (%) 26 | . . 16 . 62 Game ------ Seed ShadingCobblerBeamcaster Manual? 0 Play Time 01:07:53 Cumulative 422.8 hours Start 2025.07.28 @ 02:14:39 End 2025.07.28 @ 03:23:44 Sessions 2 Manual Loads 0 Difficulty Rogue Special Mode AFD2020/Player2 Game No. 239 Rogue 239 Adventurer 0 Explorer 0 Win Type - Total 11 Types 10/0/1/0/0/0/0/0/0/0 Lore% 54 Gallery% 65 Achievement% 53 Wizard Run 0 Options --------- Layout 1 ASCII 0 Keyboard 0 Movement Numpad Keybinds 0 Fullscreen 1 Font 24/Smallcaps Map View 50x35 Zoom Use 0% Tactical HUD 1 Map Filters NONE Filters NONE Steam 1 RUN: 9d3265fe-8daa-4dc7-ab7d-21706af5e3f7